fUSD/lending_fUSD_20240428
["ID","MTS","AMOUNT","RATE_DAILY","PERIOD"]
[22783,1714329138276,-500.0,0.00013424,2]
[22784,1714329138285,-1055.94,0.00013424,2]
[22785,1714329138295,-1696.02,0.00013424,2]
[22787,1714329138313,-549.47,0.00013424,2]
[22788,1714329138322,-500.0,0.00013424,2]
[22789,1714329138332,-905.2,0.00013424,2]
[22790,1714329138341,-4114.94,0.00013424,2]
[22791,1714329138350,-500.0,0.00013424,2]
[22792,1714329138359,-1028.65,0.00013424,2]
[22793,1714329138368,-951.17,0.00013424,2]
[22794,1714329138378,-500.0,0.00013424,2]
[22795,1714329138387,-1720.48,0.00013424,2]
[22796,1714329138396,-1490.71,0.00013424,2]
[22797,1714329138406,-3429.26,0.00013424,2]
[22798,1714329138415,-1333.24,0.00013424,2]
[22799,1714329138424,-767.86,0.00013424,2]
[22800,1714329138434,-500.0,0.00013424,2]
[22801,1714329138443,-3161.91,0.00013424,2]
[22802,1714329138452,-500.0,0.00013424,2]
[22803,1714329138462,-500.0,0.00013424,2]
[22804,1714329138472,-15996.67,0.00013424,2]
[22805,1714329138482,-1495.49,0.00013424,2]
[22806,1714329138491,-973.2,0.00013424,2]
[22807,1714329138501,-19514.18,0.00013424,2]
[22808,1714329138511,-769.1,0.00013424,2]
[22809,1714329138521,-29286.52,0.00013424,2]
[22810,1714329138531,-789.38,0.00013424,2]
[22811,1714329138541,-500.0,0.00013424,2]
[22812,1714329138550,-2249.55,0.00013424,2]
[22813,1714329138560,-1682.07,0.00013424,2]
[22814,1714329138570,-1366.6,0.00013424,2]
[22815,1714329138579,-1270.09,0.00013424,2]
[22816,1714329138589,-3202.06,0.00013424,2]
[22817,1714329138599,-738.19,0.00013424,2]
[22818,1714329138609,-3871.91,0.00013424,2]
[22819,1714329138618,-500.0,0.00013424,2]
[22820,1714329138628,-1052.48,0.00013424,2]
[22821,1714329138637,-859.1,0.00013424,2]
[22822,1714329138648,-500.0,0.00013424,2]
[22823,1714329138659,-1538.2,0.00013424,2]
[22824,1714329138668,-500.0,0.00013424,2]
[22825,1714329138678,-726.63,0.00013424,2]
[22826,1714329138691,-289.12049386,0.00013424,2]
[22827,1714329138703,-500.0,0.00013424,2]
[22828,1714329138713,-1638.81,0.00013424,2]
[22829,1714329138722,-1530.5,0.00013424,2]
[22830,1714329138733,-1018.03,0.00013424,2]
[22831,1714329138742,-1297.13,0.00013424,2]
[22832,1714329138752,-6205.7,0.00013424,2]
[22833,1714329138762,-1613.15,0.00013424,2]
[22834,1714329138772,-500.0,0.00013424,2]
[22835,1714329138783,-10958.77,0.00013424,2]
[22836,1714329138793,-1675.05,0.00013424,2]
[22837,1714329138803,-1395.16,0.00013424,2]
[22838,1714329138813,-1018.3,0.00013424,2]
[22839,1714329138823,-500.0,0.00013424,2]
[22840,1714329138833,-1585.31,0.00013424,2]
[22841,1714329138843,-633.01,0.00013424,2]
[22842,1714329138852,-500.0,0.00013424,2]
[22843,1714329138862,-42065.6,0.00013424,2]
[22844,1714329138871,-535.01,0.00013424,2]
[22845,1714329138882,-358.64406191,0.00013424,2]
[22846,1714329138892,-1402.03,0.00013424,2]
[22847,1714329138902,-500.0,0.00013424,2]
[22848,1714329138912,-2602.9,0.00013424,2]
[22849,1714329138922,-500.0,0.00013424,2]
[22850,1714329138932,-769.08,0.00013424,2]
[22851,1714329138941,-1669.71,0.00013424,2]
[22852,1714329138951,-1691.23,0.00013424,2]
[22853,1714329138960,-2082.9,0.00013424,2]
[22854,1714329138969,-4569.34,0.00013424,2]
[22855,1714329138979,-786.39,0.00013424,2]
[22856,1714329138989,-500.0,0.00013424,2]
[22857,1714329138999,-500.0,0.00013424,2]
[22858,1714329139008,-978.2,0.00013424,2]
[22859,1714329139018,-4338.45,0.00013424,2]
[22860,1714329139027,-23869.88,0.00013424,2]
[22861,1714329139037,-1242.44,0.00013424,2]
[22862,1714329139047,-1489.55,0.00013424,2]
[22863,1714329139056,-598.29,0.00013424,2]
[22864,1714329139066,-1816.26,0.00013424,2]
[22865,1714329139076,-500.0,0.00013424,2]
[22866,1714329139086,-744.76,0.00013424,2]
[22867,1714329139096,-853.69,0.00013424,2]
[22868,1714329139106,-1396.47,0.00013424,2]
[22869,1714329139116,-2315.27,0.00013424,2]
[22871,1714329139135,-5437.95,0.00013424,2]
[22872,1714329139146,-1002.92,0.00013424,2]
[22873,1714329139156,-1654.84,0.00013424,2]
[22874,1714329139166,-557.45,0.00013424,2]
[22875,1714329139176,-937.09,0.00013424,2]
[22876,1714329139186,-1605.35,0.00013424,2]
[22877,1714329139195,-9867.65,0.00013424,2]
[22878,1714329139205,-970.64,0.00013424,2]
[22879,1714329139215,-529.05,0.00013424,2]
[22881,1714329139235,-1552.38,0.00013424,2]
[22883,1714329139255,-752.06,0.00013424,2]
[22885,1714329139274,-2307.17,0.00013424,2]
[22887,1714329139294,-854.43,0.00013424,2]
[22889,1714329139313,-500.0,0.00013424,2]
[22890,1714329139323,-2010.03,0.00013424,2]
[22891,1714329139333,-1819.29,0.00013424,2]
[22892,1714329139343,-500.0,0.00013424,2]
[22893,1714329139352,-500.0,0.00013424,2]
[22894,1714329139361,-1034.68,0.00013424,2]
[22895,1714329139371,-883.46,0.00013424,2]
[22896,1714329139380,-3134.07,0.00013424,2]
[22897,1714329139390,-930.49,0.00013424,2]
[22898,1714329139399,-500.0,0.00013424,2]
[22899,1714329139410,-660.98,0.00013424,2]
[22900,1714329139420,-414.34322154,0.00013424,2]
[22901,1714329139430,-1380.46,0.00013424,2]
[22902,1714329139440,-500.0,0.00013424,2]
[22903,1714329139449,-3231.29,0.00013424,2]
[22904,1714329139459,-753.21,0.00013424,2]
[22905,1714329139469,-4596.92,0.00013424,2]
[22906,1714329139479,-1293.28,0.00013424,2]
[22907,1714329139489,-633.32,0.00013424,2]
[22908,1714329139499,-546.48,0.00013424,2]
[22909,1714329139508,-900.78,0.00013424,2]
[22910,1714329139518,-500.0,0.00013424,2]
[22911,1714329139527,-1510.06,0.00013424,2]
[22912,1714329139537,-3266.32,0.00013424,2]
[22913,1714329139547,-2166.18,0.00013424,2]
[22914,1714329139556,-1985.87,0.00013424,2]
[22915,1714329139567,-1021.32,0.00013424,2]
[22917,1714329139587,-881.51,0.00013424,2]
[22919,1714329139606,-1077.92,0.00013424,2]
[22921,1714329139626,-570.7,0.00013424,2]
[22923,1714329139646,-500.0,0.00013424,2]
[22925,1714329139666,-554.01,0.00013424,2]
[22927,1714329139687,-500.0,0.00013424,2]
[22929,1714329139711,-337.07900494,0.00013424,2]
[22931,1714329139732,-2488.18,0.00013424,2]
[22933,1714329139751,-1331.85,0.00013424,2]
[22935,1714329139771,-500.0,0.00013424,2]
[22937,1714329139791,-813.03,0.00013424,2]
[22938,1714329139800,-1635.67,0.00013424,2]
[22939,1714329139810,-1112.39,0.00013424,2]
[22940,1714329139819,-919.02,0.00013424,2]
[22941,1714329139829,-2094.6,0.00013424,2]
[22942,1714329139838,-1384.84,0.00013424,2]
[22943,1714329139848,-3255.5,0.00013424,2]
[22944,1714329139858,-601.67,0.00013424,2]
[22945,1714329139867,-1291.27,0.00013424,2]
[22946,1714329139878,-1318.58,0.00013424,2]
[22947,1714329139887,-500.0,0.00013424,2]
[22948,1714329139898,-549.5,0.00013424,2]
[22949,1714329139908,-648.58,0.00013424,2]
[22950,1714329139918,-6907.46,0.00013424,2]
[22951,1714329139928,-5225.05,0.00013424,2]
[22952,1714329139937,-669.27,0.00013424,2]
[22953,1714329139947,-513.94,0.00013424,2]
[22954,1714329139956,-3651.69,0.00013424,2]
[22955,1714329139966,-1176.65,0.00013424,2]
[22956,1714329139976,-510.79,0.00013424,2]
[22957,1714329139988,-6369.57,0.00013424,2]
[22958,1714329139998,-500.0,0.00013424,2]
[22959,1714329140008,-1274.36,0.00013424,2]
[22960,1714329140017,-216.4384571,0.00013424,2]
[22961,1714329140027,-1866.42,0.00013424,2]
[22962,1714329140037,-517.3,0.00013424,2]
[22963,1714329140047,-3099.3,0.00013424,2]
[22964,1714329140056,-500.0,0.00013424,2]
[22965,1714329140065,-821.68,0.00013424,2]
[22966,1714329140076,-1115.92,0.00013424,2]
[22967,1714329140086,-1460.67,0.00013424,2]
[22969,1714329140106,-529.06,0.00013424,2]
[22971,1714329140126,-2707.94,0.00013424,2]
[22973,1714329140147,-500.0,0.00013424,2]
[22975,1714329140167,-943.47,0.00013424,2]
[22977,1714329140188,-658.86,0.00013424,2]
[22979,1714329140208,-560.3,0.00013424,2]
[22981,1714329140228,-728.0,0.00013425,2]
[22983,1714329140248,-150.0,0.00013448,2]
[22985,1714329140268,-11396.64064,0.000135,2]
[22987,1714329140288,-150.0,0.00013573,2]
[22989,1714329140309,-1000.0,0.00013588,2]
[22991,1714329140329,-155.0,0.000136,2]
[22993,1714329140350,-387.55401911,0.00013648,2]
[22995,1714329140370,-156.49596872,0.00013663,2]
[22997,1714329140391,-1000.0,0.0001367,2]
[22999,1714329140413,-1000.0,0.0001367,2]
[23001,1714329140434,-800.0,0.00013684,2]
[23003,1714329140456,-50114.27222483,0.00013688,2]
[23005,1714329140477,-150.01,0.00013697,2]
[23007,1714329140497,-665.06,0.00013698,2]
[23009,1714329140517,-462.09638082,0.00013698,2]
[23011,1714329140537,-500.0,0.00013698,2]
[23013,1714329140557,-500.0,0.00013698,2]
[23015,1714329140577,-500.0,0.00013698,2]
[23017,1714329140598,-500.0,0.00013698,2]
[23019,1714329140617,-500.0,0.00013698,2]
[23020,1714329140627,-611.53,0.00013698,2]
[23021,1714329140638,-500.0,0.00013698,2]
[23023,1714329140661,-587.95,0.00013698,2]
[23025,1714329140681,-500.0,0.00013698,2]
[23027,1714329140705,-500.0,0.00013698,2]
[23029,1714329140727,-513.58,0.00013698,2]
[23030,1714329140736,-500.0,0.00013698,2]
[23031,1714329140746,-500.0,0.00013698,2]
[23032,1714329140756,-522.25,0.00013698,2]
[23033,1714329140766,-500.0,0.00013698,2]
[23034,1714329140778,-560.42,0.00013698,2]
[23035,1714329140983,-626.23,0.00013698,2]
[23036,1714329140994,-1310.66,0.00013698,2]
[23037,1714329141003,-500.0,0.00013698,2]
[23038,1714329141012,-500.0,0.00013698,2]
[23039,1714329141021,-1056.37,0.00013698,2]
[23040,1714329141030,-500.0,0.00013698,2]
[23041,1714329141040,-501.7,0.00013698,2]
[23042,1714329141049,-775.76,0.00013698,2]
[23043,1714329141059,-676.09,0.00013698,2]
[23044,1714329141068,-3316.81779196,0.00013698,2]
[23045,1714329141078,-500.0,0.00013698,2]
[23047,1714329141096,-551.61,0.00013698,2]
[23049,1714329141114,-500.0,0.00013698,2]
[23051,1714329141132,-500.0,0.00013698,2]
[23053,1714329141151,-549.6,0.00013698,2]
[23055,1714329141170,-500.0,0.00013698,2]
[23057,1714329141188,-527.24,0.00013698,2]
[23059,1714329141207,-500.0,0.00013698,2]
[23061,1714329141225,-500.0,0.00013698,2]
[23063,1714329141243,-297.21161119,0.00013698,2]
[23065,1714329141260,-500.0,0.00013698,2]
[23067,1714329141279,-1019.23,0.00013698,2]
[23069,1714329141298,-628.03,0.00013698,2]
[23071,1714329141317,-500.0,0.00013698,2]
[23073,1714329141336,-1178.77,0.00013698,2]
[23074,1714329141345,-500.0,0.00013698,2]
[23075,1714329141355,-500.0,0.00013698,2]
[23076,1714329141364,-707.71,0.00013698,2]
[23077,1714329141374,-605.1,0.00013698,2]
[23078,1714329141384,-832.16,0.00013698,2]
[23079,1714329141393,-500.0,0.00013698,2]
[23080,1714329141405,-585.93,0.00013698,2]
[23081,1714329141414,-500.0,0.00013698,2]
[23082,1714329141423,-237.47027946,0.00013698,2]
[23083,1714329141432,-1025.86,0.00013698,2]
[23084,1714329141442,-534.27,0.00013698,2]
[23085,1714329141452,-773.75,0.00013698,2]
[23086,1714329141461,-500.0,0.00013698,2]
[23087,1714329141471,-1055.21,0.00013698,2]
[23088,1714329141481,-731.11,0.00013698,2]
[23089,1714329141492,-500.0,0.00013698,2]
[23090,1714329141501,-1217.45,0.00013698,2]
[23091,1714329141511,-500.0,0.00013698,2]
[23092,1714329141520,-500.0,0.00013698,2]
[23093,1714329141529,-532.31,0.00013698,2]
[23094,1714329141539,-500.0,0.00013698,2]
[23095,1714329141548,-500.0,0.00013698,2]
[23097,1714329141568,-500.0,0.00013698,2]
[23098,1714329141577,-500.0,0.00013698,2]
[23099,1714329141587,-500.0,0.00013698,2]
[23101,1714329141607,-500.0,0.00013698,2]
[23103,1714329141628,-662.77,0.00013698,2]
[23105,1714329141649,-1390.68,0.00013698,2]
[23107,1714329141673,-500.0,0.00013698,2]
[23109,1714329141704,-500.0,0.00013698,2]
[23111,1714329141730,-616.2,0.00013698,2]
[23113,1714329141751,-500.0,0.00013698,2]
[23115,1714329141770,-500.0,0.00013698,2]
[23117,1714329141790,-500.0,0.00013698,2]
[23119,1714329141810,-1180.8,0.00013698,2]
[23121,1714329141830,-500.0,0.00013698,2]
[23123,1714329141848,-652.81,0.00013698,2]
[23125,1714329141867,-500.0,0.00013698,2]
[23127,1714329141886,-1126.64,0.00013698,2]
[23129,1714329141911,-549.22,0.00013698,2]
[23131,1714329141930,-500.0,0.00013698,2]
[23133,1714329141948,-705.96,0.00013698,2]
[23135,1714329141967,-1788.12,0.00013698,2]
[23137,1714329141987,-755.04,0.00013698,2]
[23139,1714329142006,-500.0,0.00013698,2]
[23141,1714329142025,-177.26302395,0.00013698,2]
[23143,1714329142043,-1008.22,0.00013698,2]
[23145,1714329142062,-500.0,0.00013698,2]
[23147,1714329142081,-500.0,0.00013698,2]
[23149,1714329142100,-500.0,0.00013698,2]
[23151,1714329142119,-500.0,0.00013698,2]
[23152,1714329142128,-500.0,0.00013698,2]
[23153,1714329142138,-500.0,0.00013698,2]
[23155,1714329142159,-768.98,0.00013698,2]
[23157,1714329142177,-648.5,0.00013698,2]
[23159,1714329142196,-673.41,0.00013698,2]
[23161,1714329142216,-518.35,0.00013698,2]
[23163,1714329142235,-1449.07,0.00013698,2]
[23165,1714329142254,-500.0,0.00013698,2]
[23166,1714329142264,-794.96,0.00013698,2]
[23167,1714329142273,-734.98,0.00013698,2]
[23169,1714329142291,-239.91417794,0.00013698,2]
[23171,1714329142309,-500.0,0.00013698,2]
[23173,1714329142328,-500.0,0.00013698,2]
[23175,1714329142346,-1173.43,0.00013698,2]
[23177,1714329142364,-1079.13,0.00013698,2]
[23179,1714329142383,-500.0,0.00013698,2]
[23181,1714329142404,-500.0,0.00013698,2]
[23183,1714329142423,-1722.94,0.00013698,2]
[23185,1714329142442,-500.0,0.00013698,2]
[23187,1714329142461,-779.67,0.00013698,2]
[23189,1714329142479,-501.69,0.00013698,2]
[23191,1714329142498,-508.41,0.00013698,2]
[23192,1714329142507,-500.0,0.00013698,2]
[23193,1714329142517,-500.0,0.00013698,2]
[23194,1714329142527,-1037.99,0.00013698,2]
[23195,1714329142535,-500.0,0.00013698,2]
[23196,1714329142545,-500.0,0.00013698,2]
[23197,1714329142555,-778.4,0.00013698,2]
[23198,1714329142564,-500.0,0.00013698,2]
[23199,1714329142573,-818.36,0.00013698,2]
[23200,1714329142583,-862.57,0.00013698,2]
[23201,1714329142592,-500.0,0.00013698,2]
[23202,1714329142602,-519.57,0.00013698,2]
[23203,1714329142611,-860.79,0.00013698,2]
[23204,1714329142621,-500.0,0.00013698,2]
[23205,1714329142630,-1876.31,0.00013698,2]
[23206,1714329142640,-500.0,0.00013698,2]
[23207,1714329142649,-500.0,0.00013698,2]
[23208,1714329142661,-650.14,0.00013698,2]
[23209,1714329142671,-725.3,0.00013698,2]
[23210,1714329142680,-617.57,0.00013698,2]
[23211,1714329142691,-1054.31,0.00013698,2]
[23212,1714329142702,-1082.91,0.00013698,2]
[23213,1714329142711,-764.8,0.00013698,2]
[23214,1714329142720,-784.22,0.00013698,2]
[23215,1714329142731,-886.38,0.00013698,2]
[23217,1714329142749,-500.0,0.00013698,2]
[23219,1714329142770,-500.0,0.00013698,2]
[23220,1714329142780,-516.12,0.00013698,2]
[23221,1714329142790,-780.48,0.00013698,2]
[23222,1714329142798,-500.0,0.00013698,2]
[23223,1714329142808,-500.0,0.00013698,2]
[23224,1714329142817,-500.0,0.00013698,2]
[23225,1714329142827,-500.0,0.00013698,2]
[23226,1714329142836,-528.05,0.00013698,2]
[23227,1714329142845,-1205.16,0.00013698,2]
[23228,1714329142855,-500.0,0.00013698,2]
[23229,1714329142864,-704.8,0.00013698,2]
[23230,1714329142874,-658.26,0.00013698,2]
[23231,1714329142883,-500.0,0.00013698,2]
[23232,1714329142893,-500.0,0.00013698,2]
[23233,1714329142903,-688.67,0.00013698,2]
[23234,1714329142913,-500.0,0.00013698,2]
[23235,1714329142922,-812.83,0.00013698,2]
[23236,1714329142931,-500.0,0.00013698,2]
[23237,1714329142941,-1863.44,0.00013698,2]
[23238,1714329142950,-492.27902756,0.00013698,2]
[23239,1714329142959,-500.0,0.00013698,2]
[23240,1714329142969,-562.73,0.00013698,2]
[23241,1714329142979,-500.0,0.00013698,2]
[23242,1714329142988,-899.04,0.00013698,2]
[23243,1714329142997,-500.0,0.00013698,2]
[23244,1714329143006,-500.0,0.00013698,2]
[23245,1714329143016,-1190.14,0.00013698,2]
[23246,1714329143025,-500.0,0.00013698,2]
[23247,1714329143035,-626.13,0.00013698,2]
[23248,1714329143044,-669.38,0.00013698,2]
[23249,1714329143054,-876.81,0.00013698,2]
[23251,1714329143072,-752.63,0.00013698,2]
[23252,1714329143082,-500.0,0.00013698,2]
[23253,1714329143091,-1089.32,0.00013698,2]
[23254,1714329143100,-765.33,0.00013698,2]
[23255,1714329143110,-1114.49,0.00013698,2]
[23257,1714329143128,-500.0,0.00013698,2]
[23258,1714329143137,-500.0,0.00013698,2]
[23259,1714329143146,-500.0,0.00013698,2]
[23260,1714329143157,-508.53,0.00013698,2]
[23261,1714329143166,-1019.77,0.00013698,2]
[23262,1714329143176,-500.0,0.00013698,2]
[23263,1714329143185,-605.8,0.00013698,2]
[23265,1714329143203,-1059.27,0.00013698,2]
[23267,1714329143221,-517.79,0.00013698,2]
[23269,1714329143241,-500.0,0.00013698,2]
[23271,1714329143260,-517.51,0.00013698,2]
[23272,1714329143270,-1894.72,0.00013698,2]
[23273,1714329143279,-500.0,0.00013698,2]
[23274,1714329143288,-500.0,0.00013698,2]
[23275,1714329143298,-500.0,0.00013698,2]
[23276,1714329143309,-930.04,0.00013698,2]
[23277,1714329143318,-830.99,0.00013698,2]
[23278,1714329143327,-500.0,0.00013698,2]
[23279,1714329143336,-1200.14,0.00013698,2]
[23280,1714329143346,-582.79,0.00013698,2]
[23281,1714329143356,-500.0,0.00013698,2]
[23282,1714329143365,-551.5,0.00013698,2]
[23283,1714329143375,-500.0,0.00013698,2]
[23285,1714329143394,-500.0,0.00013698,2]
[23287,1714329143413,-500.0,0.00013698,2]
[23289,1714329143431,-1415.69,0.00013698,2]
[23291,1714329143450,-500.0,0.00013698,2]
[23293,1714329143469,-836.74,0.00013698,2]
[23294,1714329143479,-1120.64,0.00013698,2]
[23295,1714329143488,-669.02,0.00013698,2]
[23296,1714329143498,-364.73434858,0.00013698,2]
[23297,1714329143507,-710.13,0.00013698,2]
[23298,1714329143517,-500.0,0.00013698,2]
[23299,1714329143527,-500.0,0.00013698,2]
[23300,1714329143536,-500.0,0.00013698,2]
[23301,1714329143545,-500.0,0.00013698,2]
[23302,1714329143554,-1298.79,0.00013698,2]
[23303,1714329143564,-777.85,0.00013698,2]
[23304,1714329143573,-1163.95,0.00013698,2]
[23305,1714329143582,-1171.06,0.00013698,2]
[23307,1714329143600,-500.0,0.00013698,2]
[23309,1714329143618,-782.58,0.00013698,2]
[23310,1714329143628,-681.46,0.00013698,2]
[23311,1714329143637,-500.0,0.00013698,2]
[23312,1714329143646,-500.0,0.00013698,2]
[23313,1714329143656,-741.3,0.00013698,2]
[23314,1714329143665,-500.0,0.00013698,2]
[23315,1714329143675,-1031.54,0.00013698,2]
[23316,1714329143684,-523.34,0.00013698,2]
[23317,1714329143697,-894.51,0.00013698,2]
[23318,1714329143706,-500.0,0.00013698,2]
[23319,1714329143715,-559.63,0.00013698,2]
[23320,1714329143724,-500.0,0.00013698,2]
[23321,1714329143734,-500.0,0.00013698,2]
[23323,1714329143753,-823.69,0.00013698,2]
[23324,1714329143763,-518.83,0.00013698,2]
[23325,1714329143772,-500.0,0.00013698,2]
[23326,1714329143782,-500.0,0.00013698,2]
[23327,1714329143791,-500.0,0.00013698,2]
[23328,1714329143801,-500.0,0.00013698,2]
[23329,1714329143810,-500.0,0.00013698,2]
[23330,1714329143819,-500.0,0.00013698,2]
[23331,1714329143828,-937.48,0.00013698,2]
[23332,1714329143836,-500.0,0.00013698,2]
[23333,1714329143845,-623.62,0.00013698,2]
[23334,1714329143855,-1027.6,0.00013698,2]
[23335,1714329143865,-500.0,0.00013698,2]
[23336,1714329143874,-500.0,0.00013698,2]
[23337,1714329143883,-500.0,0.00013698,2]
[23338,1714329143892,-500.0,0.00013698,2]
[23339,1714329143903,-500.0,0.00013698,2]
[23340,1714329143912,-1205.63,0.00013698,2]
[23341,1714329144106,-449.23616461,0.00013698,2]
[23342,1714329144117,-848.59,0.00013698,2]
[23343,1714329144126,-681.62,0.00013698,2]
[23344,1714329144135,-500.0,0.00013698,2]
[23345,1714329144144,-500.0,0.00013698,2]
[23346,1714329144154,-500.0,0.00013698,2]
[23347,1714329144163,-500.0,0.00013698,2]
[23348,1714329144172,-500.0,0.00013698,2]
[23349,1714329144182,-500.0,0.00013698,2]
[23350,1714329144191,-4457.04,0.00013698,2]
[23351,1714329144201,-576.16,0.00013698,2]
[23352,1714329144210,-596.24,0.00013698,2]
[23353,1714329144219,-1329.23,0.00013698,2]
[23354,1714329144229,-724.03,0.00013698,2]
[23355,1714329144239,-500.0,0.00013698,2]
[23356,1714329144248,-720.89,0.00013698,2]
[23357,1714329144257,-887.92,0.00013698,2]
[23358,1714329144267,-842.42,0.00013698,2]
[23359,1714329144276,-563.27,0.00013698,2]
[23360,1714329144285,-1491.73,0.00013698,2]
[23361,1714329144294,-9567.9,0.00013698,2]
[23362,1714329144302,-500.0,0.00013698,2]
[23363,1714329144311,-1067.66,0.00013698,2]
[23364,1714329144320,-701.3,0.00013698,2]
[23365,1714329144329,-500.0,0.00013698,2]
[23366,1714329144338,-1014.05,0.00013698,2]
[23367,1714329144347,-420.1405479,0.00013698,2]
[23368,1714329144356,-869.17,0.00013698,2]
[23369,1714329144366,-829.31,0.00013698,2]
[23370,1714329144375,-338.8815064,0.00013698,2]
[23371,1714329144384,-865.55,0.00013698,2]
[23372,1714329144393,-500.0,0.00013698,2]
[23373,1714329144403,-500.0,0.00013698,2]
[23374,1714329144412,-602.41,0.00013698,2]
[23375,1714329144421,-500.0,0.00013698,2]
[23376,1714329144431,-558.66,0.00013698,2]
[23377,1714329144441,-2122.56,0.00013698,2]
[23378,1714329144450,-1093.84,0.00013698,2]
[23379,1714329144459,-492.3613355,0.00013698,2]
[23380,1714329144469,-500.0,0.00013698,2]
[23381,1714329144478,-500.0,0.00013698,2]
[23382,1714329144488,-1059.92,0.00013698,2]
[23383,1714329144497,-500.0,0.00013698,2]
[23384,1714329144506,-769.55,0.00013698,2]
[23385,1714329144516,-2548.79,0.00013698,2]
[23386,1714329144525,-545.7,0.00013698,2]
[23387,1714329144535,-500.0,0.00013698,2]
[23388,1714329144544,-908.47,0.00013698,2]
[23389,1714329144553,-2129.61,0.00013698,2]
[23390,1714329144562,-150.0,0.00013698,2]
[23391,1714329144572,-1056.93,0.00013698,2]
[23392,1714329144581,-2366.39,0.00013698,2]
[23393,1714329144590,-500.0,0.00013698,2]
[23394,1714329144599,-720.54,0.00013698,2]
[23395,1714329144608,-150.0,0.00013698,2]
[23396,1714329144618,-500.0,0.00013698,2]
[23397,1714329144627,-500.0,0.00013698,2]
[23398,1714329144636,-737.96,0.00013698,2]
[23399,1714329144645,-500.0,0.00013698,2]
[23400,1714329144654,-500.0,0.00013698,2]
[23401,1714329144663,-150.0,0.00013698,2]
[23402,1714329144672,-1191.82,0.00013698,2]
[23403,1714329144683,-613.02,0.00013698,2]
[23404,1714329144694,-500.0,0.00013698,2]
[23405,1714329144704,-150.0,0.00013698,2]